bitfinex-derivatives/quotes_BTCF0:USTF0_20250620
["timestamp","ask_amount","ask_price","bid_price","bid_amount"]
[1750406925565,1.89033828,106140.0,106130.0,0.29260207]
[1750406925865,2.15586647,106140.0,106130.0,0.29260207]
[1750406926059,1.65586647,106140.0,106130.0,0.29260207]
[1750406926360,1.65586647,106140.0,106130.0,0.10417407]
[1750406926565,1.50683969,106140.0,106130.0,0.19460207]
[1750406926766,1.64184858,106140.0,106130.0,0.19560207]
[1750406926961,1.71896647,106140.0,106130.0,0.29080207]
[1750406927161,2.21856647,106140.0,106130.0,0.29080207]
[1750406927363,1.8966218,106140.0,106130.0,0.29080207]
[1750406927562,2.14184858,106140.0,106130.0,0.29080207]
[1750406927859,1.97373969,106140.0,106130.0,0.29080207]
[1750406928061,2.21896647,106140.0,106130.0,0.29080207]
[1750406928265,2.38900647,106140.0,106130.0,0.29080207]
[1750406928459,2.38860647,106140.0,106130.0,0.29080207]
[1750406928775,2.38900647,106140.0,106130.0,0.29080207]
[1750406931263,2.31412454,106140.0,106130.0,0.29080207]
[1750406931564,2.06889776,106140.0,106130.0,0.10237407]
[1750406931767,2.38941589,106140.0,106130.0,0.29080207]
[1750406932071,2.06707122,106140.0,106130.0,0.29080207]
[1750406932270,2.311578,106140.0,106130.0,0.29080207]
[1750406933071,2.38869589,106140.0,106130.0,0.29080207]
[1750406933368,1.2565877,106140.0,106130.0,0.29080207]
[1750406933673,1.81336092,106140.0,106130.0,0.53602885]
[1750406933864,1.73846957,106140.0,106130.0,0.53602885]
[1750406934064,1.81378979,106140.0,106130.0,0.53602885]
[1750406934565,0.67918979,106140.0,106130.0,0.53602885]
[1750406934871,1.31330979,106140.0,106130.0,0.53602885]
[1750406935072,1.31290979,106140.0,106130.0,0.53602885]
[1750406935272,1.31330979,106140.0,106130.0,0.53602885]
[1750406935967,1.50172009,106140.0,106130.0,0.53602885]
[1750406936467,1.31330979,106140.0,106130.0,0.53602885]
[1750406936869,0.31838979,106140.0,106130.0,0.89682885]
[1750406937070,0.78342979,106140.0,106130.0,0.53602885]
[1750406937771,0.15018979,106140.0,106130.0,0.53602885]
[1750406938073,0.07532022,106140.0,106130.0,0.53602885]
[1750406938269,1.25727422,106150.0,106140.0,0.1884103]
[1750406938472,1.25727422,106150.0,106140.0,0.49713708]
[1750406938767,1.25767422,106150.0,106140.0,0.49713708]
[1750406939366,1.25767422,106150.0,106140.0,0.2519103]
[1750406939964,1.25767422,106150.0,106140.0,0.2539103]
[1750406940167,1.33479211,106150.0,106140.0,0.2539103]
[1750406940469,1.25767422,106150.0,106140.0,0.2539103]
[1750406940675,1.25663422,106150.0,106140.0,0.2539103]
[1750406941075,1.25663422,106150.0,106140.0,0.2549103]
[1750406942671,1.25595422,106150.0,106140.0,0.2549103]
[1750406942870,1.25595422,106150.0,106140.0,0.79483708]
[1750406943064,1.3323113,106150.0,106140.0,0.79483708]
[1750406943975,1.3323113,106150.0,106140.0,0.5496103]
[1750406944177,1.1439173,106150.0,106140.0,0.79483708]
[1750406944379,1.3323098,106150.0,106140.0,0.79483708]
[1750406944578,1.3323098,106150.0,106140.0,0.5496103]
[1750406945278,0.9715098,106150.0,106140.0,0.5496103]
[1750406945573,1.40942769,106150.0,106140.0,0.55378437]
[1750406945766,1.3323098,106150.0,106140.0,0.55378437]
[1750406946177,0.7831173,106150.0,106140.0,0.55378437]
[1750406946476,1.40942769,106150.0,106140.0,0.61060085]
[1750406946677,1.81569447,106150.0,106140.0,0.55378437]
[1750406946880,1.73857658,106150.0,106140.0,0.36537407]
[1750406947177,1.73841658,106150.0,106140.0,0.55378437]
[1750406947380,0.09489117,106170.0,106140.0,2.53907441]
[1750406947581,0.09409117,106180.0,106170.0,0.188357]
[1750406947779,0.09589117,106190.0,106180.0,0.1883393]
[1750406947973,0.0018,106190.0,106180.0,1.17986608]
[1750406948179,0.001,106190.0,106180.0,1.17986608]
[1750406948479,0.0014,106190.0,106180.0,0.85986608]
[1750406948779,0.001,106190.0,106180.0,0.85986608]
[1750406948979,0.0014,106190.0,106180.0,0.85986608]
[1750406950274,0.0014,106190.0,106180.0,0.6206393]
[1750406950579,0.0014,106190.0,106180.0,0.86586608]
[1750406951081,0.0014,106190.0,106180.0,0.86886608]
[1750406951283,0.0014,106190.0,106180.0,0.6236393]
[1750406951484,0.0014,106190.0,106180.0,0.86886608]
[1750406960692,0.0014,106190.0,106180.0,0.87304015]
[1750406961091,0.71359893,106200.0,106190.0,2.1869216]
[1750406961293,1.07439893,106200.0,106190.0,2.52504838]
[1750406961597,0.43678092,106200.0,106190.0,2.52504838]
[1750406961794,0.07598092,106200.0,106190.0,2.52504838]
[1750406962095,0.70022092,106200.0,106190.0,2.52504838]
[1750406962298,0.70022092,106200.0,106190.0,2.52804838]
[1750406962597,0.07580934,106220.0,106190.0,3.14086278]
[1750406962797,0.001,106220.0,106210.0,1.15511288]
[1750406963094,0.001,106220.0,106210.0,0.89061288]
[1750406963293,0.07851789,106220.0,106210.0,0.2845861]
[1750406963495,0.68454467,106220.0,106210.0,0.2845861]
[1750406963686,0.82320381,106220.0,106210.0,0.2845861]
[1750406963886,0.50185914,106220.0,106210.0,0.52981288]
[1750406964198,0.0024,106220.0,106210.0,0.52981288]
[1750406964696,0.3628,106220.0,106210.0,0.52981288]
[1750406964900,0.0024,106220.0,106210.0,0.52981288]
[1750406965601,0.0024,106220.0,106210.0,0.53081288]
[1750406965788,0.0014,106220.0,106210.0,0.53081288]
[1750406967402,0.0614,106220.0,106210.0,0.2855861]
[1750406967597,0.0614,106220.0,106210.0,0.53081288]
[1750406968194,0.0614,106220.0,106210.0,0.2855861]
[1750406968393,0.0614,106220.0,106210.0,0.53081288]
[1750406971004,0.0614,106220.0,106210.0,0.2855861]
[1750406971196,0.0614,106220.0,106210.0,0.53081288]
[1750406971697,0.0614,106220.0,106210.0,0.2855861]
[1750406971903,0.0614,106220.0,106210.0,0.53081288]
[1750406973501,0.0614,106220.0,106210.0,0.2855861]
[1750406973696,0.0614,106220.0,106210.0,0.53081288]
[1750406974994,0.1882863,106210.0,106200.0,0.2947]
[1750406975301,1.49303097,106210.0,106200.0,0.483004]
[1750406975503,1.75233097,106210.0,106200.0,0.483004]
[1750406975803,1.75233097,106210.0,106200.0,0.2947]
[1750406976193,1.82714031,106210.0,106200.0,0.2967]
[1750406976400,1.82714031,106210.0,106200.0,0.2997]
[1750406977608,2.32714031,106210.0,106200.0,0.2997]
[1750406978110,2.32714031,106210.0,106200.0,0.488004]
[1750406978311,2.32714031,106210.0,106200.0,0.193304]
[1750406978903,2.32118031,106210.0,106200.0,0.193304]
[1750406981012,1.35465401,106210.0,106200.0,0.193304]
[1750406981209,1.97457401,106210.0,106200.0,0.193304]
[1750406981406,2.06769401,106210.0,106200.0,0.288004]
[1750406981606,2.25598031,106210.0,106200.0,0.288004]
[1750406981807,2.25598031,106210.0,106200.0,0.0997]
[1750406982007,2.28608031,106210.0,106200.0,0.288004]
[1750406982208,1.78608031,106210.0,106200.0,0.288004]
[1750406982411,1.78648031,106210.0,106200.0,0.288004]
[1750406982615,0.51312723,106210.0,106200.0,0.288004]
[1750406982922,1.1378,106210.0,106200.0,0.53323078]
[1750406983212,1.1378,106210.0,106200.0,0.288004]
[1750406983807,1.40320419,106210.0,106200.0,0.288004]
[1750406984008,1.72324031,106210.0,106200.0,0.0997]
[1750406984208,1.78954031,106210.0,106200.0,0.0997]
[1750406984409,1.82264031,106210.0,106200.0,0.005]
[1750406985309,1.74803097,106210.0,106200.0,0.005]
[1750406985512,2.24803097,106210.0,106200.0,0.005]
[1750406985709,2.32316911,106210.0,106200.0,0.005]
[1750406986113,2.24803097,106210.0,106200.0,0.005]
[1750406986709,2.38855958,106210.0,106200.0,0.005]
[1750406987115,0.188304,106200.0,106190.0,1.9986]
[1750406987309,1.17957545,106200.0,106190.0,1.9986]
[1750406987516,1.50821986,106200.0,106190.0,1.9986]
[1750406987918,1.60231103,106200.0,106190.0,1.9986]
[1750406988423,2.10231103,106200.0,106190.0,2.0026]
[1750406988615,2.10231103,106200.0,106190.0,2.0056]
[1750406989008,1.91397503,106200.0,106190.0,2.0056]
[1750406989220,2.10231103,106200.0,106190.0,2.0056]
[1750406991615,2.10231103,106200.0,106190.0,1.9986]
[1750406991815,2.10231103,106200.0,106190.0,1.9996]
[1750406992020,1.91397503,106200.0,106190.0,1.9996]
[1750406992422,1.81988386,106200.0,106190.0,1.9996]
[1750406994218,1.91397503,106200.0,106190.0,1.9996]
[1750406996031,1.81988386,106200.0,106190.0,1.9996]
[1750407000529,1.91397503,106200.0,106190.0,1.9996]
[1750407000729,1.51890147,106200.0,106190.0,1.9996]
[1750407001033,1.51890147,106200.0,106190.0,2.52854848]
[1750407001034,1.33059747,106200.0,106190.0,2.52854848]
[1750407001229,0.5,106200.0,106190.0,2.88934848]
[1750407001428,1.19303574,106200.0,106190.0,2.88934848]
[1750407001735,0.5,106200.0,106190.0,3.32768448]
[1750407002030,0.5004,106200.0,106190.0,3.70768448]
[1750407002228,0.5,106200.0,106190.0,3.70768448]
[1750407002429,0.0002,106210.0,106200.0,0.188304]
[1750407002629,1.11443574,106220.0,106210.0,0.1882862]
[1750407002835,1.11443574,106220.0,106210.0,0.4864261]
[1750407003030,1.11439574,106220.0,106210.0,0.4864261]
[1750407003331,0.49727574,106220.0,106210.0,0.4864261]
[1750407003535,1.11475574,106220.0,106210.0,0.4864261]
[1750407003839,1.11775574,106220.0,106210.0,0.4864261]
[1750407004730,0.50027574,106220.0,106210.0,0.24119932]
[1750407004937,1.11775574,106220.0,106210.0,0.24119932]
[1750407005138,1.04268,106220.0,106210.0,0.4864261]
[1750407005336,1.30806639,106220.0,106210.0,0.24119932]
[1750407005534,1.19687363,106220.0,106210.0,0.24119932]
[1750407005730,1.19687363,106220.0,106210.0,0.5179261]
[1750407005930,1.62836891,106220.0,106210.0,0.27269932]
[1750407006342,1.04068,106220.0,106210.0,0.27269932]
[1750407008040,1.04068,106220.0,106210.0,0.56739932]
[1750407008241,1.2289485,106220.0,106210.0,0.56739932]
[1750407008441,1.04068,106220.0,106210.0,0.56739932]
[1750407008942,0.4232,106220.0,106210.0,0.56739932]
[1750407009141,1.04012,106220.0,106210.0,0.56739932]
[1750407009537,1.2287885,106220.0,106210.0,0.56739932]
[1750407009740,1.04052,106220.0,106210.0,0.8126261]
[1750407009939,0.4232,106220.0,106210.0,0.8126261]
[1750407010141,1.04052,106220.0,106210.0,0.8126261]
[1750407010341,1.11559574,106220.0,106210.0,0.8126261]
[1750407010636,0.49827574,106220.0,106210.0,0.8126261]
[1750407010836,0.13747574,106220.0,106210.0,0.8126261]
[1750407011030,0.062,106220.0,106210.0,0.8126261]
[1750407011230,0.13911789,106220.0,106210.0,0.8126261]
[1750407011442,0.32778639,106220.0,106210.0,0.8126261]
[1750407011638,1.00888891,106220.0,106210.0,0.5765863]
[1750407011842,0.93177102,106220.0,106210.0,0.5765863]
[1750407012340,0.6114685,106220.0,106210.0,0.5765863]
[1750407012544,0.68858639,106220.0,106210.0,0.5765863]
[1750407013342,0.50041789,106220.0,106210.0,0.5765863]
[1750407013542,0.57549363,106220.0,106210.0,0.56739948]
[1750407014345,0.4233,106220.0,106210.0,0.56739948]
[1750407014643,0.4233,106220.0,106210.0,0.81262626]
[1750407016447,1.04046,106220.0,106210.0,0.81262626]
[1750407016638,1.04006,106220.0,106210.0,0.56739948]
[1750407016840,1.04046,106220.0,106210.0,0.81262626]
[1750407017634,1.30584639,106220.0,106210.0,0.81262626]
[1750407017840,0.4233,106220.0,106210.0,0.81262626]
[1750407019141,0.6115685,106220.0,106210.0,0.81262626]
[1750407019342,0.4233,106220.0,106210.0,0.81262626]
[1750407020041,0.6115685,106220.0,106210.0,0.81262626]
[1750407020249,0.4233,106220.0,106210.0,0.81262626]
[1750407020744,0.4233,106220.0,106210.0,0.81680033]
[1750407021143,1.2286486,106220.0,106210.0,0.81680033]
[1750407021744,1.2286485,106220.0,106210.0,0.81680033]
[1750407022350,1.04038,106220.0,106210.0,0.81680033]
[1750407022949,0.4233,106220.0,106210.0,0.81680033]
[1750407023149,0.13757574,106220.0,106210.0,0.81680033]
[1750407023544,0.13717574,106220.0,106210.0,0.81680033]
[1750407023846,0.13757574,106220.0,106210.0,0.81680033]
[1750407024148,0.13717574,106220.0,106210.0,0.81680033]
[1750407024351,0.13757574,106220.0,106210.0,0.81680033]
[1750407029249,0.0625,106220.0,106210.0,0.80761409]
[1750407029846,0.13780384,106220.0,106210.0,0.80761409]
[1750407030658,0.13740384,106220.0,106210.0,0.80761409]
[1750407030848,0.13780384,106220.0,106210.0,0.80761409]
[1750407031859,0.0625,106220.0,106210.0,0.80761409]
[1750407033361,0.13781948,106220.0,106210.0,1.16841409]
[1750407033558,0.13741948,106220.0,106210.0,1.16841409]
[1750407033759,0.13781948,106220.0,106210.0,1.16841409]
[1750407033948,0.13781111,106220.0,106210.0,1.16841409]
[1750407034155,0.13741111,106220.0,106210.0,1.47841409]
[1750407034364,0.13781111,106220.0,106210.0,1.16841409]
[1750407036158,0.13781111,106220.0,106210.0,0.92318731]
[1750407036560,0.13781111,106220.0,106210.0,1.16841409]
[1750407037662,0.0625,106220.0,106210.0,1.78489409]
[1750407040259,0.13781111,106220.0,106210.0,1.78489409]
[1750407040665,0.0625,106220.0,106210.0,1.78489409]
[1750407041366,0.07604431,106240.0,106210.0,2.70719817]
[1750407041564,0.07524431,106240.0,106230.0,1.03950436]
[1750407041759,0.07564431,106240.0,106230.0,1.41055758]
[1750407041964,0.0004,106240.0,106230.0,1.47235758]
[1750407042467,0.0044,106240.0,106230.0,1.47235758]
[1750407042867,0.0044,106240.0,106230.0,1.10130436]
[1750407043065,0.0044,106240.0,106230.0,1.47231758]
[1750407043465,0.0044,106240.0,106230.0,1.71754436]
[1750407044367,0.0054,106240.0,106230.0,2.04754436]
[1750407044569,0.0054,106240.0,106230.0,1.71754436]
[1750407045862,0.0054,106240.0,106230.0,2.37304436]
[1750407046066,0.001,106250.0,106240.0,0.1882331]
[1750407046363,0.001,106250.0,106240.0,0.5490331]
[1750407046562,0.0329,106250.0,106240.0,1.04949988]
[1750407046760,0.0329,106250.0,106240.0,0.46565988]
[1750407047162,0.2211154,106250.0,106240.0,0.46565988]
[1750407047869,0.0329,106250.0,106240.0,0.46565988]
[1750407048372,0.001,106250.0,106240.0,0.82645988]
[1750407048666,0.001,106250.0,106240.0,0.46565988]
[1750407048869,0.0343,106250.0,106240.0,0.46565988]
[1750407049073,0.10811322,106250.0,106240.0,0.46565988]
[1750407049268,0.0343,106250.0,106240.0,0.46565988]
[1750407050277,0.0347,106250.0,106240.0,0.46565988]
[1750407052277,0.0347,106250.0,106240.0,0.76035988]
[1750407052882,0.0347,106250.0,106240.0,0.5151331]
[1750407053074,0.0347,106250.0,106240.0,0.79265988]
[1750407053277,0.10934199,106250.0,106240.0,0.79265988]
[1750407053978,0.10934199,106250.0,106240.0,0.77379988]
[1750407054477,0.38467528,106250.0,106240.0,0.4962731]
[1750407055386,0.75875988,106250.0,106240.0,0.4829331]
[1750407055789,0.28934199,106250.0,106240.0,0.72815988]
[1750407055988,0.28934199,106250.0,106240.0,0.79315988]
[1750407056185,0.28894199,106250.0,106240.0,0.79315988]
[1750407056389,0.28934199,106250.0,106240.0,0.79315988]
[1750407056683,0.53456877,106250.0,106240.0,0.4829331]
[1750407056882,1.00378666,106250.0,106240.0,0.4829331]
[1750407057283,0.75855988,106250.0,106240.0,0.4829331]
[1750407057483,0.75855988,106250.0,106240.0,0.72815988]
[1750407057792,0.68144199,106250.0,106240.0,0.72815988]
[1750407059290,0.86965739,106250.0,106240.0,0.72815988]
[1750407059483,0.94474022,106250.0,106240.0,0.72815988]
[1750407060279,0.75652482,106250.0,106240.0,0.72815988]
[1750407060482,0.94474022,106250.0,106240.0,0.72815988]
[1750407060887,0.75652482,106250.0,106240.0,0.72815988]
[1750407062389,0.83364271,106250.0,106240.0,0.72815988]
[1750407062590,1.02185811,106250.0,106240.0,0.4829331]
[1750407062789,1.36119719,106250.0,106230.0,0.55041507]
[1750407063088,1.36119719,106250.0,106230.0,0.19242497]
[1750407063089,1.65832729,106240.0,106230.0,0.19242497]
[1750407063290,1.91879777,106240.0,106230.0,0.19242497]
[1750407063987,1.73056467,106240.0,106230.0,0.19242497]
[1750407064186,2.41879777,106240.0,106230.0,0.19242497]
[1750407065488,2.41879777,106240.0,106230.0,0.1882509]
[1750407066988,2.51293607,106240.0,106220.0,0.44852468]
[1750407067199,0.65494517,106230.0,106220.0,0.3444998]
[1750407067392,1.19435374,106230.0,106210.0,0.2653414]
[1750407067693,0.94660754,106220.0,106210.0,0.3768125]
[1750407067886,0.95288076,106220.0,106210.0,0.3468125]
[1750407068091,1.60016076,106220.0,106210.0,0.3468125]
[1750407068285,1.60016076,106220.0,106210.0,0.2997414]
[1750407068491,1.56796076,106220.0,106210.0,0.2997414]
[1750407068689,1.49276649,106220.0,106210.0,0.2997414]
[1750407068895,1.22738,106220.0,106210.0,0.2997414]
[1750407069087,1.19658,106220.0,106210.0,0.2997414]
[1750407069285,1.19658,106220.0,106210.0,0.3327414]
[1750407069796,1.19658,106220.0,106210.0,0.3337414]
[1750407070398,1.27369789,106220.0,106210.0,0.57896818]
[1750407071703,0.59099427,106230.0,106220.0,0.1882686]
[1750407072001,1.75545166,106230.0,106210.0,0.93600758]
[1750407072201,1.22464186,106230.0,106220.0,0.3608]
[1750407072401,1.72464186,106230.0,106220.0,0.3608]
[1750407072794,1.96986864,106230.0,106220.0,0.3608]
[1750407074198,1.67757656,106230.0,106220.0,0.5490686]
[1750407074505,0.62522306,106230.0,106220.0,0.79429538]
[1750407074698,1.21794,106230.0,106220.0,0.82709538]
[1750407074995,1.3734909,106230.0,106220.0,0.85819538]
[1750407075303,0.8734909,106230.0,106220.0,0.85819538]
[1750407076001,0.8734909,106230.0,106220.0,1.15289538]
[1750407076495,0.8734909,106230.0,106220.0,0.5490686]
[1750407076802,0.9054909,106230.0,106220.0,0.79429538]
[1750407077303,0.9054909,106230.0,106220.0,0.82709538]
[1750407077802,0.9054909,106230.0,106220.0,0.85739538]
[1750407077999,0.2906509,106230.0,106220.0,0.85739538]
[1750407078200,1.0604109,106230.0,106220.0,0.85739538]
[1750407079000,0.9054109,106230.0,106220.0,0.85739538]
[1750407079208,1.0603309,106230.0,106220.0,0.85739538]
[1750407079393,1.0603309,106230.0,106220.0,0.4239]
[1750407079706,1.0603309,106230.0,106220.0,0.61634267]
[1750407079895,1.0603309,106230.0,106220.0,0.86156945]
[1750407081199,1.1703309,106230.0,106220.0,0.61634267]
[1750407081398,1.1703309,106230.0,106220.0,0.86156945]
[1750407081600,1.1703309,106230.0,106220.0,0.61634267]
[1750407081798,1.1703309,106230.0,106220.0,1.15626945]
[1750407082204,0.09489117,106240.0,106220.0,1.85800023]
[1750407082504,0.003,106250.0,106240.0,0.1882331]
[1750407082803,0.001,106250.0,106240.0,1.43883988]
[1750407083809,0.0014,106250.0,106240.0,1.43883988]
[1750407084306,1e-07,106250.0,106240.0,1.78883988]
[1750407084504,1e-07,106250.0,106240.0,1.94383988]
[1750407084706,0.05744824,106270.0,106260.0,0.1881977]
[1750407084707,0.05664824,106270.0,106260.0,0.1881977]
[1750407084906,0.13131864,106270.0,106260.0,1.39106903]
[1750407085114,0.0008,106270.0,106260.0,2.03864903]
[1750407085503,0.0008,106270.0,106260.0,2.10444903]
[1750407085809,0.07574469,106280.0,106270.0,0.18818]
[1750407086012,0.07574469,106280.0,106270.0,0.86060678]
[1750407087214,0.07574469,106280.0,106270.0,1.15530678]
[1750407087712,0.07574469,106280.0,106270.0,0.91008]
[1750407087916,0.07574469,106280.0,106270.0,1.15530678]
[1750407088807,0.10674469,106280.0,106270.0,1.15530678]
[1750407089203,0.49197147,106280.0,106270.0,0.61538]
[1750407089412,1.44909377,106280.0,106270.0,0.54898]
[1750407089605,1.29263147,106280.0,106270.0,0.54898]
[1750407089806,0.27844469,106280.0,106270.0,0.54898]
[1750407090108,1.23556699,106280.0,106270.0,0.54898]
[1750407090406,1.09556699,106280.0,106270.0,0.54898]
[1750407090808,1.34079377,106280.0,106270.0,0.54898]
[1750407091204,1.09556699,106280.0,106270.0,0.54898]
[1750407091405,1.34079377,106280.0,106270.0,0.3608]
[1750407091606,1.34079377,106280.0,106270.0,0.54898]
[1750407092014,0.26170469,106280.0,106270.0,0.54898]
[1750407092212,0.07574469,106280.0,106270.0,0.82720678]
[1750407092408,0.07574469,106280.0,106270.0,0.85870678]
[1750407093010,0.07614469,106280.0,106270.0,0.85870678]
[1750407093214,0.07574469,106280.0,106270.0,0.85870678]
[1750407093415,0.07614469,106280.0,106270.0,0.85870678]
[1750407094112,0.07574469,106280.0,106270.0,0.85870678]
[1750407094515,0.07614469,106280.0,106270.0,0.85870678]
[1750407094716,0.07574469,106280.0,106270.0,1.47246678]
[1750407094903,0.07614469,106280.0,106270.0,1.47246678]
[1750407095109,0.07614469,106280.0,106270.0,0.85870678]
[1750407095418,0.07614469,106280.0,106270.0,1.15340678]
[1750407095609,0.07574469,106280.0,106270.0,1.15340678]
[1750407095811,0.07614469,106280.0,106270.0,1.15758085]
[1750407097012,0.07614469,106280.0,106270.0,0.91235407]
[1750407097213,0.07614469,106280.0,106270.0,1.15758085]
[1750407097413,0.07614469,106280.0,106270.0,0.91235407]
[1750407097714,0.07614469,106280.0,106270.0,1.15758085]
[1750407098224,0.26430699,106280.0,106270.0,1.15758085]
[1750407099118,0.07614469,106280.0,106270.0,1.15758085]
[1750407099723,0.26430699,106280.0,106270.0,1.15758085]
[1750407100720,0.26430699,106280.0,106270.0,0.91235407]
[1750407101214,0.26430699,106280.0,106270.0,1.15758085]
[1750407101612,0.50953377,106280.0,106270.0,0.61765407]
[1750407102211,0.26430699,106280.0,106270.0,0.61765407]
[1750407103021,0.07614469,106280.0,106270.0,0.61765407]
[1750407104720,0.07614469,106280.0,106270.0,0.86288085]
[1750407109016,0.07614469,106280.0,106270.0,0.84402085]
[1750407109516,0.13234558,106280.0,106270.0,0.84402085]
[1750407110127,0.07614469,106280.0,106270.0,0.84402085]
[1750407111422,0.07614469,106280.0,106270.0,1.13872085]
[1750407111718,0.15099928,106280.0,106270.0,1.13872085]
[1750407115629,0.15099928,106280.0,106270.0,0.89349407]
[1750407115821,0.15099928,106280.0,106270.0,1.13872085]
[1750407118627,0.15099928,106280.0,106270.0,1.12953974]
[1750407119129,0.15099928,106280.0,106270.0,1.11067974]
[1750407122026,0.07614469,106280.0,106270.0,1.11067974]
[1750407122228,0.07614469,106280.0,106270.0,1.18597974]
[1750407122429,0.15099928,106280.0,106270.0,0.81597974]
[1750407122730,0.15059928,106280.0,106270.0,1.18371296]
[1750407122931,0.18159928,106280.0,106270.0,1.18371296]
[1750407123131,0.18159928,106280.0,106270.0,1.42893974]
[1750407124528,0.18159928,106280.0,106270.0,1.18371296]
[1750407124725,0.18159928,106280.0,106270.0,1.42893974]
[1750407125632,0.15099928,106280.0,106270.0,1.42893974]
[1750407125835,0.15099928,106280.0,106270.0,1.42885974]
[1750407126538,0.15099928,106280.0,106270.0,0.81597974]
[1750407126833,0.15099928,106280.0,106270.0,1.42877974]
[1750407128927,0.15099928,106280.0,106270.0,1.41959897]
[1750407129520,0.15099928,106280.0,106270.0,0.54271219]
[1750407129725,0.37046158,106280.0,106270.0,1.15539219]
[1750407129926,0.61568836,106280.0,106270.0,0.29003219]
[1750407130125,1.82546907,106280.0,106250.0,0.627954]
[1750407130331,0.07528777,106260.0,106250.0,0.7220708]
[1750407130526,0.50871225,106260.0,106250.0,0.6431178]
[1750407130833,0.77586708,106260.0,106240.0,0.5664721]
[1750407131133,0.86997679,106260.0,106250.0,0.1882154]
[1750407131921,1.07769811,106260.0,106250.0,0.1882154]
[1750407132125,1.32292489,106260.0,106250.0,0.1882154]
[1750407133234,1.93556489,106260.0,106250.0,0.1882154]
[1750407133732,0.84200971,106260.0,106250.0,0.43344218]
[1750407133932,0.7822977,106260.0,106250.0,0.1882154]
[1750407134130,1.6427607,106260.0,106240.0,0.77909888]
[1750407134432,0.32738569,106250.0,106240.0,0.96733198]
[1750407134635,0.32738569,106250.0,106240.0,0.82615988]
[1750407134936,0.13917029,106250.0,106240.0,0.82615988]
[1750407135527,0.064,106250.0,106240.0,0.82615988]
[1750407137226,0.67648,106250.0,106240.0,0.82615988]
[1750407138530,0.67648,106250.0,106240.0,0.5809331]
[1750407138737,0.67648,106250.0,106240.0,0.82615988]
[1750407139531,0.67648,106250.0,106240.0,0.83033395]
[1750407139732,0.75165029,106250.0,106240.0,0.83033395]
[1750407140039,0.93986569,106250.0,106240.0,0.83033395]
[1750407140435,0.064,106250.0,106240.0,0.83033395]
[1750407140743,0.94022569,106250.0,106240.0,0.58510717]
[1750407141037,0.94022569,106250.0,106240.0,1.12503395]
[1750407141239,0.94967756,106250.0,106240.0,0.87980717]
[1750407141433,0.94022569,106250.0,106240.0,1.12503395]
[1750407142139,0.32778569,106250.0,106240.0,1.12503395]
[1750407142327,0.13957029,106250.0,106240.0,1.12503395]
[1750407143131,0.10827029,106250.0,106240.0,1.12503395]
[1750407143336,0.10827029,106250.0,106240.0,1.15763395]
[1750407144836,0.0331,106250.0,106240.0,1.15763395]
[1750407145243,0.64538,106250.0,106240.0,1.15763395]
[1750407146143,0.8335954,106250.0,106240.0,1.15763395]
[1750407146942,0.8335954,106250.0,106240.0,1.12503395]
[1750407147239,0.8643954,106250.0,106240.0,1.12503395]
[1750407148146,0.8643954,106250.0,106240.0,0.87980717]
[1750407148336,0.8643954,106250.0,106240.0,1.12503395]
[1750407149043,1.18479247,106250.0,106240.0,0.29887407]
[1750407149238,0.93956569,106250.0,106240.0,0.29887407]
[1750407149442,1.18479247,106250.0,106240.0,0.29887407]
[1750407149642,1.47042218,106250.0,106240.0,0.00417407]
[1750407150039,1.97042218,106250.0,106240.0,0.00417407]
[1750407151139,2.06453189,106250.0,106240.0,0.00417407]
[1750407151541,0.1882331,106240.0,106230.0,0.2947]
[1750407151736,1.04405988,106240.0,106230.0,0.2947]
[1750407152238,0.68325988,106240.0,106230.0,0.2947]
[1750407152438,1.11910723,106240.0,106230.0,0.2947]
[1750407152644,0.75830723,106240.0,106230.0,0.2947]
[1750407152846,0.75830723,106240.0,106230.0,0.4829509]
[1750407153346,0.85928045,106240.0,106230.0,0.4829509]
[1750407153544,1.62520045,106240.0,106230.0,0.4829509]
[1750407154049,1.62520045,106240.0,106230.0,0.2957]
[1750407154247,1.98600045,106240.0,106230.0,0.4839509]
[1750407155346,1.62520045,106240.0,106230.0,0.4839509]
[1750407155539,1.87042723,106240.0,106230.0,0.4839509]
[1750407155743,1.5501531,106240.0,106230.0,0.1892509]
[1750407156245,1.79537988,106240.0,106230.0,0.1892509]
[1750407156745,1.5501531,106240.0,106230.0,0.5500509]
[1750407156941,1.5192931,106240.0,106230.0,0.79527768]
[1750407157152,1.5192931,106240.0,106230.0,0.82527768]
[1750407157348,1.59474045,106240.0,106230.0,0.82527768]
[1750407157544,1.62724045,106240.0,106230.0,0.82527768]
[1750407158941,1.62716045,106240.0,106230.0,0.82527768]
[1750407159141,1.62716045,106240.0,106230.0,0.5800509]
[1750407159544,0.86148045,106240.0,106230.0,0.5800509]
[1750407159850,1.62720045,106240.0,106230.0,0.5800509]
[1750407161050,0.86148045,106240.0,106230.0,0.5800509]
[1750407161248,1.62712045,106240.0,106230.0,0.5800509]
[1750407161449,1.62712045,106240.0,106230.0,0.3618]
[1750407162249,1.87234723,106240.0,106230.0,0.3618]
[1750407162751,1.79729988,106240.0,106230.0,0.3618]
[1750407162946,1.79729988,106240.0,106230.0,0.001]
[1750407163951,1.79729988,106240.0,106230.0,0.3618]
[1750407165047,1.79729988,106240.0,106230.0,0.001]
[1750407165245,1.79729988,106240.0,106230.0,0.3618]
[1750407166455,1.79709988,106240.0,106230.0,0.3618]
[1750407166648,1.5518731,106240.0,106230.0,0.3618]
[1750407166851,1.79709988,106240.0,106230.0,0.3618]
[1750407167153,1.79641988,106240.0,106230.0,0.3618]
[1750407167653,1.79641988,106240.0,106230.0,0.5500509]
[1750407167957,1.03165988,106240.0,106230.0,0.5500509]
[1750407168144,1.79637988,106240.0,106230.0,0.5500509]
[1750407168348,0.7539331,106240.0,106230.0,0.79527768]
[1750407168544,1.5182131,106240.0,106230.0,0.89127768]
[1750407168746,1.5186131,106240.0,106230.0,0.89127768]
[1750407168943,1.5186131,106240.0,106230.0,0.70302678]
[1750407169343,1.5186131,106240.0,106230.0,0.89127758]
[1750407169543,1.59380082,106240.0,106230.0,0.6132508]
[1750407169950,1.5186131,106240.0,106230.0,0.61742487]
[1750407170151,1.5186131,106240.0,106230.0,0.58592487]
[1750407171460,1.5185331,106240.0,106230.0,0.58592487]
[1750407171962,0.7539331,106240.0,106230.0,0.83115165]
[1750407172463,1.5184931,106240.0,106230.0,0.83115165]
[1750407172949,0.7539331,106240.0,106230.0,0.83115165]
[1750407173155,1.5184931,106240.0,106230.0,0.86135165]
[1750407173555,1.5184931,106240.0,106230.0,1.15605165]
[1750407173955,0.57561784,106240.0,106230.0,1.15605165]
[1750407174156,1.18645784,106240.0,106230.0,1.15605165]
[1750407174356,1.37509094,106240.0,106230.0,1.15605165]
[1750407174554,1.18685784,106240.0,106230.0,1.15605165]
[1750407175061,0.68685784,106240.0,106230.0,1.15605165]